bitfinex/quotes_SOLUSD_20240702
["timestamp","ask_amount","ask_price","bid_price","bid_amount"]
[1719883225628,12.38,147.42,147.39,106.7846]
[1719883226023,12.38,147.41,147.39,106.7846]
[1719883226430,12.38,147.4,147.39,100.0]
[1719883226644,12.38,147.4,147.38,23.7473]
[1719883226949,12.38,147.4,147.38,16.9623]
[1719883227245,12.38,147.4,147.37,106.7855]
[1719883227246,19.1643,147.4,147.37,100.0]
[1719883227439,19.1643,147.4,147.36,6.786]
[1719883227642,6.7849,147.39,147.35,116.966]
[1719883228124,12.38,147.37,147.35,116.966]
[1719883228331,12.38,147.37,147.35,123.7524]
[1719883229239,12.38,147.37,147.35,116.966]
[1719883229446,12.38,147.36,147.33,106.7873]
[1719883229841,6.7853,147.38,147.33,106.7873]
[1719883230050,24.81,147.41,147.29,32.3757]
[1719883230251,6.7875,147.33,147.3,100.0]
[1719883230636,6.787,147.34,147.3,100.0]
[1719883230826,6.7866,147.35,147.3,106.7888]
[1719883231226,6.787,147.34,147.3,106.7888]
[1719883232037,6.7866,147.35,147.3,106.7888]
[1719883232246,23.2696,147.37,147.33,100.0]
[1719883232549,26.7862,147.36,147.32,6.7878]
[1719883232753,26.7862,147.36,147.33,1.35729542]
[1719883232945,26.7862,147.36,147.31,106.7883]
[1719883233151,6.7866,147.35,147.31,106.7883]
[1719883234432,6.7866,147.35,147.31,100.0]
[1719883235053,6.7866,147.35,147.32,1.35741425]
[1719883235240,6.7866,147.35,147.31,100.0]
[1719883237848,6.7874,147.34,147.31,100.0]
[1719883238232,20.0,147.36,147.32,1.35751483]
[1719883238233,6.7867,147.35,147.32,1.35751483]
[1719883238442,20.0,147.36,147.33,100.0]
[1719883238646,26.7864,147.36,147.33,100.0]
[1719883239059,6.7866,147.35,147.33,100.0]
[1719883240150,26.7862,147.36,147.33,100.0]
[1719883240347,20.0,147.36,147.33,100.0]
[1719883240558,20.0,147.37,147.35,100.0]
[1719883240858,6.7857,147.37,147.35,100.0]
[1719883241040,20.0,147.36,147.35,100.0]
[1719883241357,26.7861,147.36,147.33,100.0]
[1719883241951,6.7866,147.35,147.33,100.0]
[1719883243361,23.23347248,147.41,147.36,6.7857]
[1719883243535,6.7847,147.4,147.35,106.7862]
[1719883243958,6.7847,147.39,147.35,100.0]
[1719883244161,16.2223,147.41,147.35,100.0]
[1719883244838,20.0,147.4,147.35,100.0]
[1719883245238,6.7848,147.39,147.35,100.0]
[1719883245851,6.7848,147.39,147.35,106.7864]
[1719883246672,6.7848,147.39,147.35,100.0]
[1719883249074,20.0,147.4,147.33,100.0]
[1719883249864,20.0,147.4,147.31,23.7584]
[1719883249865,6.7866,147.35,147.31,123.7584]
[1719883250158,6.787,147.34,147.31,116.9702]
[1719883250365,6.7875,147.33,147.31,100.0]
[1719883250946,6.7871,147.34,147.31,100.0]
[1719883251866,6.7865,147.36,147.31,106.7883]
[1719883252040,26.7867,147.35,147.31,106.7883]
[1719883252236,26.7867,147.35,147.31,100.0]
[1719883252461,6.7876,147.33,147.31,100.0]
[1719883252835,6.7871,147.34,147.31,100.0]
[1719883253950,6.7867,147.35,147.32,1.35740844]
[1719883254135,6.7867,147.35,147.31,100.0]
[1719883254136,6.7867,147.35,147.33,1.35735298]
[1719883255340,6.7867,147.35,147.31,100.0]
[1719883255739,6.787,147.34,147.31,100.0]
[1719883258460,6.7865,147.36,147.31,100.0]
[1719883258663,7.01183753,147.39,147.35,100.0]
[1719883258965,17.12231696,147.41,147.37,100.0]
[1719883258966,6.7842,147.4,147.37,100.0]
[1719883259344,6.7842,147.4,147.35,106.7861]
[1719883259946,6.7847,147.39,147.35,106.7861]
[1719883260146,6.7852,147.38,147.35,100.0]
[1719883260361,6.7857,147.37,147.34,100.0]
[1719883261776,6.7852,147.38,147.35,1.35708866]
[1719883262077,23.0061,147.41,147.36,108.14277094]
[1719883262375,20.0,147.4,147.37,23.7487]
[1719883262581,20.0,147.4,147.37,16.9632]
[1719883262793,20.0,147.4,147.33,106.787]
[1719883262969,20.0,147.4,147.35,100.0]
[1719883263156,6.7851,147.39,147.35,100.0]
[1719883263357,6.7851,147.38,147.35,101.35699884]
[1719883263678,6.7851,147.38,147.36,1.35699884]
[1719883264054,6.7848,147.39,147.36,1.35699884]
[1719883265667,20.0,147.4,147.36,1.35699884]
[1719883265988,6.7867,147.35,147.32,100.0]
[1719883266166,41.7723,147.39,147.3,100.0]
[1719883266367,20.0,147.38,147.3,100.0]
[1719883266567,6.7882,147.32,147.3,100.0]
[1719883266785,6.7875,147.33,147.3,100.0]
[1719883267080,6.788,147.32,147.3,100.0]
[1719883267387,6.788,147.32,147.27,16.975]
[1719883267388,16.3437,147.35,147.28,100.0]
[1719883267684,36.3437,147.35,147.28,100.0]
[1719883268183,53.3109,147.35,147.28,100.0]
[1719883268385,53.3109,147.35,147.27,16.975]
[1719883268581,53.3109,147.35,147.29,100.0]
[1719883268887,6.7875,147.33,147.29,100.0]
[1719883269086,20.0,147.32,147.29,100.0]
[1719883269288,20.0,147.32,147.29,101.35762907]
[1719883269666,26.788,147.32,147.29,100.0]
[1719883270292,20.0,147.32,147.29,100.0]
[1719883270471,20.0,147.34,147.29,100.0]
[1719883270792,6.788,147.32,147.29,100.0]
[1719883270985,20.0,147.31,147.29,100.0]
[1719883271280,40.32842246,147.35,147.26,16.9761]
[1719883271281,6.7875,147.33,147.31,100.0]
[1719883271482,23.36122246,147.35,147.31,100.0]
[1719883271483,20.0,147.32,147.31,100.0]
[1719883272692,6.7871,147.34,147.31,100.0]
[1719883272892,15.5909,147.4,147.34,100.0]
[1719883273183,6.7857,147.37,147.34,100.0]
[1719883273569,23.98060609,147.39,147.32,100.0]
[1719883273767,6.7869,147.35,147.32,100.0]
[1719883275874,6.7869,147.35,147.32,100.0]
[1719883276069,24.81,147.38,147.3,116.9711]
[1719883276284,6.7874,147.33,147.3,100.0]
[1719883279195,6.7871,147.34,147.3,100.0]
[1719883280068,6.7871,147.34,147.3,106.7887]
[1719883280292,6.7884,147.31,147.3,100.0]
[1719883280477,6.7879,147.32,147.3,100.0]
[1719883280794,16.9668,147.35,147.3,100.0]
[1719883280985,6.7875,147.33,147.3,100.0]
[1719883282601,26.7871,147.34,147.3,100.0]
[1719883282802,26.7871,147.34,147.3,106.7887]
[1719883283689,26.7871,147.34,147.3,100.0]
[1719883284089,26.7871,147.34,147.3,106.7887]
[1719883284289,20.0,147.34,147.3,106.7887]
[1719883284485,20.0,147.34,147.31,1.35740923]
[1719883284892,7.01772929,147.37,147.32,100.0]
[1719883285096,6.7851,147.39,147.34,123.7539]
[1719883285297,22.60971933,147.4,147.35,0.51505931]
[1719883285599,6.7853,147.38,147.34,116.9671]
[1719883285805,6.7853,147.38,147.34,118.32422939]
[1719883286102,6.7856,147.37,147.34,118.32422939]
[1719883286401,6.7856,147.37,147.34,101.35712939]
[1719883287477,6.7861,147.36,147.34,100.0]
[1719883287679,6.7861,147.36,147.32,100.0]
[1719883288986,6.7861,147.36,147.32,106.7879]
[1719883289701,6.7857,147.37,147.32,6.7879]
[1719883289887,6.7861,147.36,147.32,6.7879]
[1719883290082,6.7857,147.37,147.33,100.0]
[1719883290277,6.785,147.39,147.35,100.0]
[1719883290485,6.7843,147.4,147.37,100.0]
[1719883290702,20.0,147.39,147.38,0.97086219]
[1719883291201,20.0,147.39,147.37,100.0]
[1719883291392,20.0,147.4,147.37,101.04757351]
[1719883292507,26.7844,147.4,147.37,101.04757351]
[1719883293805,26.7844,147.4,147.37,100.0]
[1719883296812,6.7848,147.39,147.37,100.0]
[1719883297116,6.7861,147.36,147.35,100.0]
[1719883297328,6.7861,147.36,147.34,100.0]
[1719883297815,6.7861,147.36,147.32,106.7878]
[1719883298902,6.7857,147.37,147.32,106.7878]
[1719883299489,6.7857,147.37,147.33,6.7872]
[1719883299894,6.7853,147.38,147.33,6.7872]
[1719883300196,6.7853,147.38,147.34,6.787]
[1719883300704,6.7853,147.38,147.33,6.7873]
[1719883301615,6.7853,147.38,147.34,100.0]
[1719883301802,20.0,147.4,147.36,100.0]
[1719883301803,26.7847,147.4,147.36,100.0]
[1719883303620,6.7848,147.39,147.36,100.0]
[1719883306205,26.7843,147.4,147.36,100.0]
[1719883307316,20.0,147.4,147.36,106.7859]
[1719883307517,20.0,147.4,147.38,100.0]
[1719883309720,26.7842,147.4,147.38,100.0]
[1719883310719,6.7837,147.42,147.39,1.33709071]
[1719883311017,6.7837,147.42,147.38,100.0]
[1719883311018,6.7837,147.42,147.4,1.33699999]
[1719883311608,6.7838,147.41,147.4,1.33699999]
[1719883311814,6.7838,147.41,147.38,100.0]
[1719883312003,19.1738,147.41,147.38,100.0]
[1719883313830,12.39,147.41,147.38,100.0]
[1719883314909,6.7842,147.4,147.38,100.0]
[1719883315927,19.1739,147.41,147.38,100.0]
[1719883318421,6.7843,147.4,147.38,100.0]
[1719883320214,19.1739,147.41,147.38,100.0]
[1719883321930,12.39,147.4,147.36,100.0]
[1719883322132,19.175,147.39,147.36,100.0]
[1719883322427,19.1742,147.4,147.36,100.0]
[1719883323220,12.39,147.4,147.36,106.7857]
[1719883323408,23.64674194,147.44,147.41,100.0]
[1719883323610,6.7825,147.44,147.41,100.0]
[1719883323828,19.1725,147.44,147.41,100.0]
[1719883324025,19.1725,147.44,147.42,1.35443175]
[1719883326655,6.7825,147.44,147.42,1.35443175]
[1719883326860,6.7821,147.45,147.43,101.35434013]
[1719883327153,6.7815,147.46,147.44,1.35636244]
[1719883327339,20.0,147.45,147.44,1.35636244]
[1719883328757,6.7811,147.47,147.46,100.0]
[1719883328970,6.7807,147.48,147.46,100.0]
[1719883329257,6.781,147.47,147.46,100.0]
[1719883329444,6.781,147.47,147.44,100.0]
[1719883329445,6.7815,147.46,147.44,100.0]
[1719883329646,19.1711,147.47,147.44,100.0]
[1719883330042,12.39,147.47,147.44,106.7824]
[1719883330557,12.39,147.48,147.46,100.0]
[1719883331053,19.1706,147.48,147.46,100.0]
[1719883331643,19.1706,147.48,147.44,6.7823]
[1719883331846,19.1706,147.48,147.46,100.0]
[1719883332562,23.5283972,147.52,147.48,100.0]
[1719883332864,6.7783,147.53,147.48,106.7804]
[1719883333077,6.7783,147.53,147.5,100.0]
[1719883333366,23.44663486,147.56,147.5,100.0]
[1719883333656,23.44663486,147.56,147.52,100.0]
[1719883333657,19.1677,147.55,147.52,100.0]
[1719883334551,6.7777,147.55,147.52,100.0]
[1719883334773,12.39,147.55,147.52,100.0]
[1719883335067,20.0,147.54,147.52,100.0]
[1719883337455,19.1674,147.55,147.52,100.0]
[1719883337650,6.7769,147.56,147.54,100.0]
[1719883337847,19.1669,147.56,147.54,100.0]
[1719883339355,6.7773,147.55,147.54,100.0]
[1719883340044,19.1673,147.55,147.54,100.0]
[1719883340367,6.7773,147.55,147.54,100.0]
[1719883341162,6.7779,147.54,147.52,100.0]
[1719883342043,19.1673,147.55,147.52,100.0]
[1719883342346,12.39,147.54,147.52,100.0]
[1719883342740,12.39,147.55,147.52,100.0]
[1719883342948,19.167,147.56,147.54,100.0]
[1719883348057,12.39,147.55,147.52,106.7786]
[1719883352565,40.49651046,147.6,147.52,100.0]
[1719883352758,12.39,147.53,147.49,106.7799]
[1719883353562,6.7781,147.54,147.5,6.7795]
[1719883353765,12.39,147.53,147.5,6.7795]
[1719883355466,12.39,147.53,147.52,100.0]
[1719883355673,6.7769,147.56,147.52,100.0]
[1719883355866,32.39,147.55,147.52,100.0]
[1719883356253,20.0,147.55,147.54,100.0]
[1719883356463,12.39,147.56,147.54,100.0]
[1719883356776,12.39,147.57,147.54,100.0]
[1719883357767,19.1664,147.57,147.54,100.0]
[1719883358176,12.39,147.57,147.54,100.0]
[1719883358859,6.7761,147.58,147.54,100.0]
[1719883359065,6.7761,147.58,147.56,100.0]
[1719883359066,20.0,147.57,147.56,100.0]
[1719883359263,32.39,147.57,147.56,100.0]
[1719883360277,39.1664,147.57,147.56,100.0]
[1719883360776,32.39,147.57,147.56,100.0]
[1719883362861,39.1664,147.57,147.56,100.0]
[1719883363481,26.7764,147.57,147.56,100.0]
[1719883363776,39.1664,147.57,147.56,100.0]
[1719883363972,20.0,147.57,147.56,100.0]
[1719883364156,32.39,147.57,147.56,100.0]
[1719883365077,39.1664,147.57,147.56,100.0]
[1719883365400,26.7764,147.57,147.56,100.0]
[1719883365579,39.1664,147.57,147.56,100.0]
[1719883366473,14.41687529,147.61,147.56,100.0]
[1719883366676,27.03347529,147.61,147.58,100.0]
[1719883366872,27.03347529,147.61,147.59,1.35488011]
[1719883366873,0.8355618,147.61,147.59,1.35488011]
[1719883367073,0.8355618,147.61,147.6,100.0]
[1719883370268,0.8355618,147.61,147.6,100.0]
[1719883372090,0.8355618,147.61,147.57,100.0]
[1719883372295,0.8355618,147.61,147.55,100.0]
[1719883372590,12.39,147.58,147.55,100.0]
[1719883373787,12.39,147.58,147.55,106.7772]
[1719883375287,12.39,147.57,147.53,100.0]
[1719883375495,12.39,147.57,147.52,16.9462]
[1719883375496,19.1672,147.56,147.52,16.9462]
[1719883376378,12.39,147.54,147.52,16.9462]
[1719883376589,12.39,147.54,147.52,23.7247]
[1719883376778,12.39,147.55,147.52,23.7247]
[1719883377371,12.39,147.55,147.53,100.0]
[1719883380271,12.39,147.55,147.53,6.7782]
[1719883380479,12.39,147.54,147.51,100.0]
[1719883380781,12.39,147.54,147.51,106.779]
[1719883381188,12.39,147.55,147.53,100.0]
[1719883381583,12.39,147.55,147.53,106.7779]
[1719883381882,12.39,147.54,147.53,100.0]
[1719883382271,12.39,147.55,147.53,100.0]
[1719883382473,12.39,147.55,147.53,106.7782]
[1719883383300,12.39,147.55,147.53,100.0]
[1719883383679,12.39,147.54,147.53,100.0]
[1719883384582,12.39,147.54,147.49,100.0]
[1719883384901,19.1678,147.54,147.5,6.7796]
[1719883385087,12.39,147.52,147.5,6.7796]
[1719883387000,23.49772028,147.59,147.52,100.0]
[1719883387180,12.39,147.55,147.53,6.7779]
[1719883387575,12.39,147.55,147.52,123.7249]
[1719883387786,12.39,147.54,147.52,116.9463]
[1719883388099,12.39,147.53,147.52,116.9463]
[1719883389887,13.78882896,147.57,147.52,125.0806154]
[1719883390079,20.0,147.56,147.52,125.0806154]
[1719883390276,12.39,147.54,147.52,125.0806154]
[1719883391819,26.7769,147.56,147.52,125.0806154]
[1719883392010,12.39,147.54,147.52,125.0806154]
[1719883392696,12.39,147.54,147.52,116.9463]
[1719883393002,12.39,147.54,147.52,118.30182817]
[1719883394794,12.39,147.54,147.52,101.35552817]
[1719883394989,19.1678,147.54,147.52,100.0]
[1719883397004,12.39,147.54,147.52,100.0]
[1719883398609,12.39,147.53,147.49,116.9496]
[1719883398908,69.56,147.56,147.49,116.9496]
[1719883398909,12.39,147.52,147.49,116.9496]
[1719883399608,12.39,147.52,147.49,123.7293]
[1719883399903,12.39,147.52,147.5,6.7795]
[1719883400407,12.39,147.53,147.5,6.7795]
[1719883400780,20.0,147.56,147.52,106.7784]
[1719883400992,12.39,147.55,147.53,1.35544812]
[1719883405893,19.1673,147.55,147.53,1.35544812]
[1719883406292,26.7769,147.56,147.54,100.0]
[1719883406495,32.39,147.56,147.54,100.0]
[1719883407613,39.1669,147.56,147.54,100.0]
[1719883408709,26.7769,147.56,147.54,100.0]
[1719883408899,32.39,147.56,147.54,100.0]
[1719883409101,20.0,147.56,147.54,100.0]
[1719883410690,32.39,147.56,147.54,100.0]
[1719883411019,39.167,147.56,147.54,100.0]
[1719883411514,12.39,147.55,147.54,100.0]
[1719883415113,7.01123199,147.59,147.57,100.0]
[1719883415300,6.7751,147.6,147.58,1.35499335]
[1719883415501,20.0001618,147.61,147.58,1.35499335]
[1719883416691,0.8355618,147.61,147.58,1.35499335]
[1719883416890,33.2255618,147.61,147.58,1.35499335]
[1719883418133,20.8355618,147.61,147.59,100.0]
[1719883418296,33.2255618,147.61,147.6,1.35486071]
[1719883418596,20.8355618,147.61,147.6,1.35486071]
[1719883419217,20.8355618,147.61,147.59,100.0]
[1719883419418,40.0001618,147.61,147.59,100.0]
[1719883419998,20.0001618,147.61,147.59,100.0]
[1719883420204,0.8355618,147.61,147.6,1.35485177]
[1719883423303,0.8355618,147.61,147.59,100.0]
[1719883423497,7.6103618,147.61,147.59,100.0]
[1719883423725,13.2255618,147.61,147.57,100.0]
[1719883424002,19.165,147.6,147.57,100.0]
[1719883424201,12.39,147.6,147.57,100.0]
[1719883424816,12.39,147.6,147.57,106.7762]
[1719883425125,0.8355618,147.61,147.57,106.7762]
[1719883425324,13.2255618,147.61,147.59,100.0]
[1719883425510,20.0001618,147.61,147.59,100.0]
[1719883425704,13.2255618,147.61,147.59,100.0]
[1719883428215,0.8355618,147.61,147.6,1.35490244]
[1719883428611,0.8355618,147.61,147.6,8.12974502]
[1719883429730,0.8355618,147.61,147.6,20.51974502]
[1719883431244,0.8355618,147.61,147.59,100.0]
[1719883431428,0.8355618,147.61,147.59,106.7754]
[1719883431940,0.8355618,147.61,147.6,6.775]
[1719883432417,0.8355618,147.61,147.6,19.165]
[1719883434410,0.8355618,147.61,147.6,6.775]
[1719883436031,0.8355618,147.61,147.59,106.7753]
[1719883438737,0.8355618,147.61,147.6,6.775]
[1719883439328,0.8355618,147.61,147.58,16.9389]
[1719883439529,0.8355618,147.61,147.56,6.7768]
[1719883439530,12.39,147.59,147.56,6.7768]
[1719883439732,12.39,147.59,147.55,123.7198]
[1719883440035,12.39,147.57,147.54,6.7778]
[1719883440236,12.39,147.57,147.53,6.7781]
[1719883440468,19.1666,147.57,147.52,16.9464]
[1719883440620,19.1666,147.57,147.52,23.7247]
[1719883441053,12.39,147.54,147.52,23.7247]
[1719883441519,13.1522,147.58,147.53,6.7782]
[1719883441841,12.39,147.56,147.55,6.7772]
[1719883442027,12.39,147.55,147.53,106.7782]
[1719883443113,6.3762,147.58,147.57,100.0]
[1719883443313,26.3762,147.58,147.57,100.0]
[1719883443618,38.7662,147.58,147.57,100.0]
[1719883444339,20.0,147.58,147.57,100.0]
[1719883444520,20.0,147.58,147.57,106.7764]
[1719883446145,32.39,147.58,147.57,100.0]
[1719883446326,12.39,147.59,147.57,108.1315314]
[1719883446528,0.8355618,147.61,147.59,100.0]
[1719883446733,0.8355618,147.61,147.6,1.35483583]
[1719883447454,0.8355618,147.61,147.6,6.775]
[1719883448442,0.8355618,147.61,147.59,106.7754]
[1719883451040,0.8355618,147.61,147.59,100.0]
[1719883451244,0.8355618,147.61,147.6,6.775]
[1719883451445,0.8355618,147.61,147.6,8.12795161]
[1719883451743,0.8355618,147.61,147.6,20.51795161]
[1719883451934,0.8355618,147.61,147.6,19.165]
[1719883453749,0.8355618,147.61,147.6,120.51953388]
[1719883459650,0.8355618,147.61,147.6,119.165]
[1719883460662,0.8355618,147.61,147.6,120.51943825]
[1719883466378,22.2728,147.68,147.64,100.0]
[1719883466671,20.0,147.67,147.64,100.0]
[1719883466966,32.39,147.67,147.64,100.0]
[1719883467267,20.0,147.67,147.64,100.0]
[1719883467566,39.1619,147.67,147.64,100.0]
[1719883468348,12.39,147.66,147.64,100.0]
[1719883471057,39.1619,147.67,147.64,100.0]
[1719883472365,19.1623,147.66,147.62,116.9348]
[1719883472573,12.39,147.65,147.62,123.7086]
[1719883473270,12.39,147.66,147.63,8.1281183]
[1719883473650,12.39,147.66,147.64,100.0]
[1719883473869,32.39,147.67,147.64,106.7731]
[1719883474567,32.39,147.67,147.65,1.35437142]
[1719883474754,32.39,147.67,147.64,106.7731]
[1719883475772,20.0,147.67,147.64,106.7731]
[1719883475975,32.39,147.67,147.64,106.7731]
[1719883476358,32.39,147.67,147.65,1.35433976]
[1719883477992,6.4117,147.7,147.66,100.0]
[1719883478266,6.4117,147.7,147.68,100.0]
[1719883478470,12.39,147.7,147.68,100.0]
[1719883478651,6.7699,147.72,147.68,100.0]
[1719883478856,12.39,147.7,147.68,100.0]
[1719883479571,22.9912,147.73,147.7,100.0]
[1719883479967,32.39,147.72,147.7,100.0]
[1719883481076,12.39,147.71,147.68,116.928]
[1719883481468,19.16,147.71,147.68,116.928]
[1719883481972,12.39,147.7,147.68,116.928]
[1719883482673,12.39,147.71,147.68,116.928]
[1719883485895,19.1601,147.71,147.68,100.0]
[1719883486181,12.39,147.69,147.66,106.7722]
[1719883488676,20.0,147.72,147.66,100.0]
[1719883488883,12.39,147.7,147.69,100.0]
[1719883489077,12.39,147.71,147.69,100.0]
[1719883489667,12.39,147.7,147.69,100.0]
[1719883492578,19.1604,147.7,147.67,100.0]
[1719883492785,12.39,147.69,147.67,100.0]
[1719883493006,19.1609,147.69,147.65,123.7036]
[1719883493193,6.7709,147.69,147.65,123.7038]
[1719883493368,19.1609,147.69,147.65,123.7038]
[1719883493575,12.39,147.69,147.66,1.35416989]
[1719883494092,12.39,147.69,147.65,123.7038]
[1719883494591,12.39,147.69,147.66,6.7723]
[1719883495681,12.39,147.69,147.67,1.35417796]
[1719883496189,19.1605,147.7,147.67,1.35417796]
[1719883497991,12.39,147.69,147.67,1.35417796]
[1719883498384,12.39,147.69,147.66,1.35417708]
[1719883498773,19.1605,147.7,147.66,6.7721]
[1719883499594,16.222,147.73,147.69,100.0]
[1719883499892,12.39,147.72,147.69,100.0]
[1719883500666,19.1595,147.72,147.69,100.0]
[1719883501092,12.39,147.72,147.69,100.0]
[1719883501893,22.9912,147.73,147.69,100.0]
[1719883501894,12.39,147.71,147.69,100.0]
[1719883506199,22.9912,147.73,147.69,106.7708]
[1719883506403,12.39,147.72,147.71,100.0]
[1719883510519,22.9912,147.73,147.71,100.0]
[1719883510690,12.39,147.72,147.71,100.0]
[1719883510892,13.64851877,147.74,147.71,100.0]
[1719883511232,7.6037618,147.75,147.72,1.35360729]
[1719883511508,12.39,147.73,147.72,1.35360729]
[1719883512807,12.7131558,147.73,147.72,1.35360729]
[1719883513287,12.7131558,147.73,147.71,216.9241]
[1719883513489,0.3231558,147.73,147.72,12.39]
[1719883513696,0.3231558,147.73,147.72,13.74337945]
[1719883514287,0.3231558,147.73,147.72,20.51287945]
[1719883515306,0.8441632,147.81,147.77,6.7671]
[1719883515619,12.39,147.8,147.77,6.7671]
[1719883515935,12.39,147.8,147.77,23.685]
[1719883517317,12.39,147.8,147.78,100.0]
[1719883517521,7.6095632,147.81,147.78,100.0]
[1719883517836,12.39,147.79,147.77,16.9179]
[1719883518030,12.39,147.78,147.77,1.35320022]
[1719883518531,12.39,147.78,147.75,1.35326892]
[1719883518824,12.39,147.78,147.74,100.0]
[1719883519421,19.1569,147.78,147.74,100.0]
[1719883519835,12.39,147.76,147.74,100.0]
[1719883520635,6.7668,147.78,147.74,100.0]
[1719883520838,12.39,147.77,147.74,100.0]
[1719883521015,6.7668,147.78,147.74,106.7684]
[1719883521336,12.39,147.77,147.74,106.7684]
[1719883523112,12.39,147.76,147.74,106.7684]
[1719883525949,12.39,147.77,147.74,106.7684]
[1719883528035,12.39,147.77,147.74,100.0]
[1719883528240,12.39,147.76,147.74,100.0]
[1719883530022,12.39,147.75,147.73,23.6904]
[1719883530337,12.39,147.75,147.74,106.7686]
[1719883530535,12.39,147.76,147.74,106.7686]
[1719883530933,12.39,147.75,147.74,106.7686]
[1719883531320,12.39,147.76,147.74,106.7686]
[1719883532444,12.39,147.76,147.74,100.0]
[1719883532637,12.39,147.75,147.74,100.0]
[1719883533043,12.39,147.75,147.72,106.7694]
[1719883533224,46.95929501,147.81,147.72,100.0]
[1719883533225,12.39,147.73,147.72,100.0]
[1719883535144,46.95929501,147.81,147.72,116.9228]
[1719883535325,6.7667,147.79,147.74,106.7685]
[1719883535518,12.39,147.77,147.74,106.7685]
[1719883536041,12.39,147.76,147.74,106.7685]
[1719883538348,20.0,147.78,147.74,100.0]
[1719883538537,12.39,147.75,147.74,100.0]
[1719883545157,12.39,147.75,147.72,100.0]
[1719883545158,19.1581,147.75,147.72,100.0]
[1719883545452,6.7687,147.74,147.72,100.0]
[1719883545829,19.1587,147.74,147.72,100.0]
[1719883546344,12.39,147.74,147.72,100.0]
[1719883547557,12.39,147.74,147.72,108.12311347]
[1719883548037,12.39,147.75,147.72,108.12311347]
[1719883548432,23.2026,147.76,147.68,16.9277]
[1719883548660,12.39,147.7,147.68,16.9277]
[1719883549036,12.39,147.7,147.68,123.699]
[1719883549535,12.39,147.7,147.67,6.7717]
[1719883550150,12.39,147.69,147.67,6.7717]
[1719883550455,12.39,147.68,147.66,100.0]
[1719883550661,12.39,147.67,147.66,100.0]
[1719883550840,12.39,147.68,147.66,100.0]
[1719883551861,12.39,147.67,147.66,100.0]
[1719883556365,12.39,147.68,147.66,106.7723]
[1719883557650,12.39,147.67,147.66,106.7723]
[1719883560666,12.39,147.68,147.66,106.7723]
[1719883561866,12.39,147.67,147.66,106.7723]
[1719883562246,12.39,147.67,147.64,100.0]
[1719883562654,12.39,147.65,147.64,100.0]
[1719883563370,12.39,147.65,147.62,123.7089]
[1719883563547,12.39,147.65,147.61,6.7745]
[1719883563951,6.7737,147.63,147.59,123.7131]
[1719883564746,12.39,147.6,147.59,123.7131]
[1719883565355,12.39,147.61,147.6,6.775]
[1719883566466,12.39,147.61,147.59,23.7135]